Cogmind - Beta 15 @@@ ROGUE MODE // 2025.07.19 @ 23:25:37 Player: Magi163 Result: Destroyed by AG-88523 with Assembled Focal Cannon Performance ------------- Evolutions (1) 500 Regions Visited (6) 1200 Robots Destroyed (83) 415 Value Destroyed (1855) 1855 Prototype IDs (7) 140 Alien Tech Used (0) 0 Bonus (1608) 1608 TOTAL SCORE: 5718 Bonus ------- High Alert Combat Kills 8 Met Imprinter 300 Was Imprinted 300 Destroyed Z-Imprinter 1000 Cogmind --------- Core Integrity 0/400 Matter 213/300 Energy 100/100 System Corruption 0% Temperature Cool (12) Movement Core (50) Location -7/Deep Caves Parts ------- > --- POWER (1) -------- (None) > --- PROPULSION (3) --- (None) > --- UTILITY (3) ------ Targeting Computer > --- WEAPON (2) ------- (None) > --- INVENTORY (5) ---- Improved Ion Engine Weapon Cycler Improved EM Shotgun RU-N14's Throwing Claymores (1) CR-A16's Pointy Stick Peak State ------------ > --- POWER ------------ Zionite Light DM Reactor > --- PROPULSION ------- Light Treads Armored Treads Armored Treads > --- UTILITY ---------- High-capacity Storage Unit Targeting Computer Zionite Light Carapace > --- WEAPON ----------- RU-N14's Throwing Claymores RU-N14's Throwing Claymores > --- INVENTORY -------- Improved Ion Engine Heavy Ion Engine Zionite Light DM Reactor Medium Matter Pod Improved Terrain Scanner Seismic Detector Weapon Cycler Makeshift Hacking Suite Makeshift Hacking Suite Hacking Drone Bay Improved EM Shotgun Improved EM Shotgun Ion Cannon Heavy Assault Rifle Light Cannon EMP Blaster RU-N14's Throwing Claymores Makeshift Sword CR-A16's Pointy Stick [Rating: 43] Favorites ----------- Power Improved Ion Engine Engine Improved Ion Engine Power Core Light Nuclear Core Reactor Zionite Light DM Reactor Propulsion Light Treads Treads Light Treads Leg Aluminum Leg Utility High-capacity Storage Unit Device Improved Terrain Scanner Storage High-capacity Storage Unit Processor Targeting Computer Protection Light Armor Plating Weapon Improved EM Shotgun Energy Gun Improved EM Shotgun Energy Cannon EM Pulse Cannon Ballistic Gun Light Assault Rifle Ballistic Cannon Light Cannon Launcher EMP Blaster Special Weapon RU-N14's Throwing Claymores Slashing Weapon Makeshift Sword Build | -11 -10 -10 -9 -9 -7 -7 ------- Run | Yrd Mat Min Mat Min Zio Dee Slots Evolved 2 | . . . 2 . . . Power . | . . . . . . . Propulsion 1 | . . . 1 . . . Utility 1 | . . . 1 . . . Weapon . | . . . . . . . Parts Attached 45 | 2 1 9 12 3 4 14 Power 7 | . 1 1 1 1 1 2 Engine 4 | . 1 1 . 1 1 . Core 1 | . . . 1 . . . Reactor 2 | . . . . . . 2 Propulsion 10 | . . 3 4 1 1 1 Treads 9 | . . 2 4 1 1 1 Leg 1 | . . 1 . . . . Wheel . | . . . . . . . Hover . | . . . . . . . Flight . | . . . . . . . Utility 14 | 1 . 3 3 1 1 5 Device 5 | 1 . . 1 . 1 2 Storage 1 | . . 1 . . . . Processor 1 | . . . . . . 1 Hackware . | . . . . . . . Protection 7 | . . 2 2 1 . 2 Artifact . | . . . . . . . Weapon 14 | 1 . 2 4 . 1 6 Energy Gun 3 | . . . 3 . . . Energy Cannon 2 | . . . . . . 2 Ballistic Gun 2 | 1 . 1 . . . . Ballistic Cannon 1 | . . . . . . 1 Launcher 1 | . . . 1 . . . Special Weapon 4 | . . . . . 1 3 Impact Weapon . | . . . . . . . Slashing Weapon 1 | . . 1 . . . . Piercing Weapon . | . . . . . . . Special Melee Weapon . | . . . . . . . Unidentified Prototypes 7 | . . . 1 . 2 4 Parts Lost 23 | . 1 4 5 5 . 8 Power 6 | . 1 1 1 1 . 2 Propulsion 8 | . . 1 1 3 . 3 Utility 5 | . . . 2 1 . 2 Weapon 4 | . . 2 1 . . 1 Highest Loss Streak 6 | . 1 2 2 3 . 6 To Critical Strikes . | . . . . . . . Average Backups 16 | 6 7 10 18 15 16 19 Power 1 | 1 1 1 2 1 1 1 Propulsion 1 | 3 1 1 1 . . . Utility 7 | . 2 6 9 7 7 6 Weapon 6 | 1 1 . 4 6 8 11 Tool/Special . | . . . . . . . Unused Backups 33 | 7 8 4 5 . . 9 Power 5 | 1 3 . . . . 1 Propulsion 9 | 4 3 1 1 . . . Utility 9 | 1 1 . 1 . . 6 Weapon 10 | 1 1 3 3 . . 2 Tool/Special . | . . . . . . . Average Slot Usage (%) 95 | . 100 99 93 90 94 99 Engine 9 | . 14 13 7 11 11 4 Core 1 | . . . 3 . . . Treads 25 | . . 12 30 24 28 32 Leg 3 | . 28 15 . . . . Device 9 | . 14 9 7 11 11 8 Storage 11 | . 14 14 11 11 11 11 Processor 1 | . . . . . . 7 Protection 8 | . . 4 10 11 11 6 Energy Gun 8 | . 14 11 9 12 10 . Ballistic Gun 5 | . 14 9 8 . . . Launcher 2 | . . . . 9 6 . Special Weapon 2 | . . . . . 4 8 Slashing Weapon 2 | . . 7 3 . . 5 Peak Build Rating 43 | 9 10 13 22 19 29 43 Average Rating 19 | 7 9 11 17 16 21 32 On Entrance 14 | 6 9 10 13 19 16 29 Naked Turns . | . . . . . . . Heaviest Build 69 | 15 15 53 61 58 64 69 Greatest Support 60 | 20 20 40 60 60 60 60 Greatest Overweight (x) 1 | . . 1 1 1 1 1 Average Overweight (x) . | . . . . . . . Largest Inventory Capacity 20 | 8 8 20 20 20 20 20 Average Capacity 18 | 8 8 13 20 20 20 19 Most Carried 20 | 8 8 14 20 18 20 20 Average Carried 16 | 6 7 10 18 15 16 19 Final Capacity 20 | 8 8 20 20 20 20 5 Final Carried 20 | 7 8 14 18 14 20 5 Class Distribution -------------------- 61% | Scavenger-Mutant 38% | Mutant Dominant Class ---------------- Mutant | -10/Materials Mutant | -10/Mines Scavenger-Mutant | -9/Materials Scavenger-Mutant | -9/Mines Scavenger-Mutant | -7/Zion Mutant | -7/Deep Caves Resources | -11 -10 -10 -9 -9 -7 -7 ----------- Run | Yrd Mat Min Mat Min Zio Dee Matter Collected 1057 | 271 69 146 351 67 33 120 Remotely . | . . . . . . . Salvage Created 2893 | 176 488 304 1476 161 . 288 Parts 188 | 13 21 21 110 6 . 17 Haulers Intercepted 1 | . . . 1 . . . Recyclers Shooed 6 | . 4 . 2 . . . Parts Field Recycled . | . . . . . . . Retrieved Matter . | . . . . . . . Parts Self-Destructed . | . . . . . . . Prevented . | . . . . . . . Kills | -11 -10 -10 -9 -9 -7 -7 ------- Run | Yrd Mat Min Mat Min Zio Dee Combat Hostiles Destroyed 61 | . 8 10 31 5 . 7 Melee 11 | . . 8 1 . . 2 Guns 36 | . 8 2 24 2 . . AOE 14 | . . . 6 3 . 5 Classes Destroyed 14 | 2 2 2 4 1 . 3 Worker 3 | . . . 3 . . . Builder 4 | . . . 4 . . . Tunneler 6 | 5 . . 1 . . . Hauler 1 | . . . 1 . . . Recycler 4 | 1 1 . 2 . . . Mechanic 1 | . . . 1 . . . Watcher 4 | . 1 . 3 . . . Swarmer 25 | . . 6 19 . . . Grunt 20 | . 8 2 7 3 . . Sentry 7 | . . 2 5 . . . Demolisher 2 | . . . . 2 . . Z-Technician 2 | . . . . . . 2 Z-Light 5 | . . . . . . 5 Assembled 1 | . . . . . . 1 Best Kill Streak 9 | 2 4 3 9 3 . 3 Combat Bots Only 8 | . 3 3 8 3 . 3 Max Kills in Single Turn 4 | 1 1 1 4 2 . 2 Gunslinging 1 | . . . 1 . . . Exploded 2 | . . . 2 2 . 2 Melee 1 | . . 1 1 . . 1 Uniques/NPCs Destroyed 1 | . . . . . . 1 Z-Imprinter (-7/Deep Caves) Combat | -11 -10 -10 -9 -9 -7 -7 -------- Run | Yrd Mat Min Mat Min Zio Dee Hostile Shots Fired 331 | . 43 54 175 14 . 45 Missed 89 | . 17 10 46 4 . 12 Hits 242 | . 26 44 129 10 . 33 Melee 3 | . . . . . . 3 Projectile 239 | . 26 44 129 10 . 30 AOE 6 | . . . . 6 . . Critical Strikes 7 | . . 2 5 . . . Damage Taken 3552 | . 316 503 1381 297 . 1055 Core 616 | . 44 128 104 47 . 293 Absorbed by Shields 105 | . . . . . . 105 Core Remaining (%) 65 | 100 . 31 . . . . Volleys Fired 156 | 17 33 10 74 8 . 14 Largest 2 | 2 2 2 2 2 . 2 Hottest 123 | 70 70 70 90 78 . 123 Shots Fired 291 | 34 66 18 135 15 . 23 Gun 243 | 34 66 18 119 6 . . Cannon 10 | . . . . . . 10 Launcher 25 | . . . 16 9 . . Special 13 | . . . . . . 13 Kinetic 108 | 17 33 8 50 . . . Thermal 65 | 17 33 10 . . . 5 Explosive 13 | . . . . . . 13 Electromagnetic 105 | . . . 85 15 . 5 Robot Hit Streak 14 | 5 9 5 14 4 . 3 Robot Miss Streak 6 | 3 4 2 6 3 . 2 Penetration Max . | . . . . . . . Secondary Targets 5 | . . 1 4 . . . Max Gunslinging Chain 1 | . . 1 1 . . . Shots Hit Robots 202 | 20 43 25 90 9 . 15 Core Hits 132 | 7 24 12 64 9 . 16 Critical Kills . | . . . . . . . Critical Parts Destroyed . | . . . . . . . Critical Strikes 5 | 1 1 1 . . . 2 Burn 3 | 1 1 1 . . . . Corrupt 1 | . . . . . . 1 Sever 1 | . . . . . . 1 Melee Attacks 34 | . . 24 3 . . 7 Impact . | . . . . . . . Slashing 34 | . . 24 3 . . 7 Piercing . | . . . . . . . Sneak Attacks 4 | . . . 1 . . 3 Combat Hostiles . | . . . . . . . Follow-up Attacks . | . . . . . . . Damage Inflicted 5417 | 257 545 595 1993 273 . 1754 Guns 2097 | 257 545 170 1070 55 . . Cannons 132 | . . . . . . 132 Explosions 2084 | . . . 810 218 . 1056 Melee 880 | . . 425 110 . . 345 Ramming 3 | . . . 3 . . . Kinetic 745 | 119 271 93 262 . . . Thermal 913 | 138 274 77 357 . . 67 Explosive 1056 | . . . . . . 1056 Electromagnetic 1599 | . . . 1261 273 . 65 Impact . | . . . . . . . Slashing 1101 | . . 425 110 . . 566 Piercing . | . . . . . . . Highest Corruption 2 | . . . 2 2 2 . Average Corruption 2 | . . . 2 2 2 . Corruption Purged . | . . . . . . . Corruption Blocked . | . . . . . . . Effects 18 | . . . 11 6 1 . Message Errors 6 | . . . 2 4 . . Energy Discharges 3 | . . . 3 . . . Data Loss (minor) 2 | . . . . 1 1 . Data Loss (major) 2 | . . . 2 . . . Misfires 4 | . . . 3 1 . . Weapon Failures 1 | . . . 1 . . . Overload Shots . | . . . . . . . Overflow Damage 229 | . . 39 22 . . 168 Projectiles . | . . . . . . . Explosions 53 | . . . 22 . . 31 Melee 176 | . . 39 . . . 137 Knockbacks . | . . . . . . . Impact . | . . . . . . . Kinetic . | . . . . . . . Secondary . | . . . . . . . Self-Inflicted Damage 116 | . . . 91 25 . . Shots 8 | . . . 6 2 . . Rammed 1 | . . . 1 . . . Targets Rammed 1 | . . . 1 . . . Kicked . | . . . . . . . Crushed . | . . . . . . . Highest Temperature 509 | 54 99 87 177 75 . 509 Average Temperature 59 | 18 31 37 54 26 . 200 Received Heat Transfer 890 | . 177 150 330 27 . 206 Effects 6 | . . . . . . 6 Interference 3 | . . . . . . 3 Matter Decay 1 | . . . . . . 1 Damage (minor) 2 | . . . . . . 2 Siege Activations . | . . . . . . . Martial Activations . | . . . . . . . Shielding Activations . | . . . . . . . Robots Disrupted . | . . . . . . . Combat Hostiles . | . . . . . . . Robots Corrupted . | . . . . . . . Combat Hostiles . | . . . . . . . Parts Fried 8 | . . . 5 1 . 2 Impact Corruptions . | . . . . . . . Robots Melted . | . . . . . . . Combat Hostiles . | . . . . . . . Parts Melted 1 | 1 . . . . . . Heat Transferred 2176 | 481 888 296 400 . . 111 Parts Sabotaged . | . . . . . . . Parts Stolen . | . . . . . . . Parts Stripped . | . . . . . . . Power Chain Reactions 5 | . . . 5 . . . Alert | -11 -10 -10 -9 -9 -7 -7 ------- Run | Yrd Mat Min Mat Min Zio Dee Maximum Alert Level 2 | . . . 2 1 . . Low Security (%) 83 | 100 100 100 77 65 . . Level 1 13 | . . . 17 34 . . Level 2 3 | . . . 5 . . . Level 3 . | . . . . . . . Level 4 . | . . . . . . . Level 5 . | . . . . . . . High Security . | . . . . . . . Max Security . | . . . . . . . Peak Influence 477 | 10 131 84 477 241 . . Initial 181 | . . . 29 181 . . Average 90 | 1 79 17 106 175 . . Influence Increases 1727 | 30 269 247 1031 150 . . Destroy 0b10 Robot/C 1080 | . 160 200 620 100 . . Destroy 0b10 Robot/NC 115 | 30 10 . 75 . . . Destroy Leader 260 | . 52 30 158 20 . . Successful Hack 39 | . . . 39 . . . Select Force Hacks 30 | . 30 . . . . . Disable Machine 30 | . . . 15 15 . . Destroy Structure 23 | . 2 2 19 . . . Partial Spotted 30 | . . 15 15 . . . Lose Combat Pursuer 120 | . 15 . 90 15 . . Influence Decreases 1727 | 30 269 171 642 504 111 . Entered New Map 442 | . . . 47 284 111 . Time Decay 926 | 30 170 161 395 170 . . Lost Part 120 | . 10 10 50 50 . . Purge Threat 239 | . 89 . 150 . . . Squads Dispatched 7 | . 3 . 4 . . . Investigation 3 | . 2 . 1 . . . Extermination . | . . . . . . . Reinforcement 4 | . 1 . 3 . . . Assault . | . . . . . . . Garrison . | . . . . . . . Intercept . | . . . . . . . Searches Triggered . | . . . . . . . Construction Impeded 1 | . . . 1 . . . Haulers Reinforced . | . . . . . . . Active Scanning Responses . | . . . . . . . Cargo Convoy Interrupts . | . . . . . . . Stealth | -11 -10 -10 -9 -9 -7 -7 --------- Run | Yrd Mat Min Mat Min Zio Dee Distress Signals 6 | . 3 . 3 . . . Communications Jammed . | . . . . . . . Distress Signals . | . . . . . . . Times Spotted 101 | . 16 10 56 8 . 11 Peak Tracking Total 10 | . 7 3 10 3 . 3 Tactical Retreats 4 | . 1 . 2 1 . . Traps | -11 -10 -10 -9 -9 -7 -7 ------- Run | Yrd Mat Min Mat Min Zio Dee Traps Triggered 2 | . 1 . 1 . . . Indirectly . | . . . . . . . Trap Hack Attempts . | . . . . . . . Triggered . | . . . . . . . Disarmed . | . . . . . . . Reprogrammed . | . . . . . . . Reused . | . . . . . . . Traps Extracted . | . . . . . . . Installed . | . . . . . . . Triggered . | . . . . . . . Machines | -11 -10 -10 -9 -9 -7 -7 ---------- Run | Yrd Mat Min Mat Min Zio Dee Machines Disabled 2 | . . . 1 1 . . Max in Single Turn 1 | . . . 1 1 . . Machines Repaired . | . . . . . . . Machines Dismantled . | . . . . . . . Machines Sabotaged . | . . . . . . . Overloaded Fab Kills . | . . . . . . . Hacking | -11 -10 -10 -9 -9 -7 -7 --------- Run | Yrd Mat Min Mat Min Zio Dee Machines Accessed 13 | . 4 . 9 . . . Terminals 11 | . 3 . 8 . . . Fabricators . | . . . . . . . Repair Stations . | . . . . . . . Recycling Units 1 | . 1 . . . . . Scanalyzers 1 | . . . 1 . . . Garrison Access . | . . . . . . . Total Hacks 37 | . 8 . 29 . . . Successful 20 | . 4 . 16 . . . Failed 17 | . 4 . 13 . . . Catastrophic 2 | . 1 . 1 . . . Database Lockouts . | . . . . . . . Manual 31 | . 3 . 23 . 5 . Terminals 33 | . 6 . 27 . . . Fabricators . | . . . . . . . Repair Stations . | . . . . . . . Recycling Units 2 | . 2 . . . . . Scanalyzers 2 | . . . 2 . . . Garrison Access . | . . . . . . . Terminal Hacks 4 | . 2 . 2 . . . Robot Analysis 1 | . 1 . . . . . Unreport Threat 2 | . 1 . 1 . . . Zone Layout 1 | . . . 1 . . . Fabricator Hacks . | . . . . . . . Repair Station Hacks . | . . . . . . . Recycling Unit Hacks 1 | . 1 . . . . . Report Inventory 1 | . 1 . . . . . Scanalyzer 2 | . . . 2 . . . Insert Component 1 | . . . 1 . . . Analyze 1 | . . . 1 . . . Garrison Access Hacks . | . . . . . . . Unauthorized Hacks 12 | . 1 . 11 . . . Terminals 11 | . . . 11 . . . Track 1 | . . . 1 . . . Botnet 4 | . . . 4 . . . Skim 6 | . . . 6 . . . Fabricators . | . . . . . . . Repair Stations . | . . . . . . . Recycling Units 1 | . 1 . . . . . Tunnel 1 | . 1 . . . . . Scanalyzers . | . . . . . . . Garrison Access . | . . . . . . . Data Cores Recovered . | . . . . . . . Used . | . . . . . . . Hacking Detections 10 | . 3 . 7 . . . Full Trace Events 3 | . . . 3 . . . Feedback Events . | . . . . . . . Feedback Blocked . | . . . . . . . Robot Schematics Acquired . | . . . . . . . Robots Built . | . . . . . . . Authchips . | . . . . . . . Time . | . . . . . . . Total Robot Build Rating . | . . . . . . . Part Schematics Acquired 1 | . . . 1 . . . Parts Built . | . . . . . . . Authchips . | . . . . . . . Time . | . . . . . . . Total Part Build Rating . | . . . . . . . Parts Repaired . | . . . . . . . Time . | . . . . . . . Parts Recycled . | . . . . . . . Recycled Matter . | . . . . . . . Retrieved Matter . | . . . . . . . Retrieved Components . | . . . . . . . Parts Scanalyzed 1 | . . . 1 . . . Part Schematics Acquired 1 | . . . 1 . . . Parts Damaged . | . . . . . . . Bothacking | -11 -10 -10 -9 -9 -7 -7 ------------ Run | Yrd Mat Min Mat Min Zio Dee Used RIF Installer . | . . . . . . . Robots Hacked . | . . . . . . . Non-combat . | . . . . . . . Combat . | . . . . . . . Robot Hacks Applied . | . . . . . . . Relay Couplers Released . | . . . . . . . Fabnet Peak Effective % . | . . . . . . . Robots Rewired . | . . . . . . . Allies Hacked . | . . . . . . . Hacks Repelled . | . . . . . . . Allies | -11 -10 -10 -9 -9 -7 -7 -------- Run | Yrd Mat Min Mat Min Zio Dee Total Allies 6 | . . . . . 6 . Largest Group 6 | . . . . . 6 2 Highest-Rated Group 198 | . . . . . 198 45 Highest-Rated Ally 40 | . . . . . 40 31 Total Orders . | . . . . . . . Ally Attacks 23 | . . . . . . 23 Total Damage 291 | . . . . . . 291 Kills 6 | . . . . . . 6 Allies Corrupted . | . . . . . . . Allies Melted . | . . . . . . . Intel | -11 -10 -10 -9 -9 -7 -7 ------- Run | Yrd Mat Min Mat Min Zio Dee Active Infowar (turns) 3399 | 49 395 418 1253 351 820 113 Terrain 3399 | 49 395 418 1253 351 820 113 Robot Analysis Total 1 | . 1 . . . . . Derelict Logs Recovered 3 | . . 1 . 1 1 . Drone Launches 1 | . . . . . . 1 Drone Recoveries . | . . . . . . . Exploration | -11 -10 -10 -9 -9 -7 -7 ------------- Run | Yrd Mat Min Mat Min Zio Dee Turns Passed 5706 | 123 395 609 1963 351 1463 802 Spaces Moved 2635 | 55 221 325 926 146 634 328 Core 6 | . . . . . . 6 Treads 2121 | . . 93 926 146 634 322 Legs 508 | 55 221 232 . . . . Wheels . | . . . . . . . Hover . | . . . . . . . Flight . | . . . . . . . Fastest Speed 50 | 120 120 120 160 160 163 50 Average Speed 189 | 120 120 154 181 221 226 215 Slowest Speed 246 | 120 120 240 240 240 243 246 Overloaded Moves . | . . . . . . . Propulsion Burnouts . | . . . . . . . Robots Hopped . | . . . . . . . Potential Cave-ins . | . . . . . . . Cave-ins Triggered . | . . . . . . . Exploration Rate (%) 49 | 3 39 62 66 31 81 61 Regions Visited 6 Branch Regions 4 Pre-discovered Areas 4 | . 1 1 . . 2 . Known Exits Taken . | . . . . . . . Unknown Exits Taken 6 | 1 1 1 1 1 1 . Scrap Searched 3 | . . 2 . . 1 . Spaces Dug 3 | . . 2 1 . . . Terrain Destroyed 85 | . . 2 19 . . 64 Melee 3 | . . 2 1 . . . Projectile 2 | . . . . . . 2 AOE 80 | . . . 18 . . 62 Terrain Rammed . | . . . . . . . Walls Destroyed . | . . . . . . . Machines Disabled . | . . . . . . . Actions | -11 -10 -10 -9 -9 -7 -7 --------- Run | Yrd Mat Min Mat Min Zio Dee Total 3046 | 78 288 389 1080 160 662 389 Wait 78 | . 18 8 30 2 16 4 Move 2629 | 54 220 324 925 145 633 328 Hop . | . . . . . . . Pick Up 55 | 3 9 11 20 . 7 5 Fast Attach 7 | 1 . 1 . . 1 4 Attach 20 | . 1 3 7 4 . 5 Detach 1 | . . . . . . 1 Swap 33 | 1 . 6 9 1 4 12 Drop 32 | 2 7 2 11 . 1 9 Fire 156 | 17 33 10 74 8 . 14 Melee 34 | . . 24 3 . . 7 Ram . | . . . . . . . Kick . | . . . . . . . Crush 1 | . . . 1 . . . Escape Stasis . | . . . . . . . Rewire . | . . . . . . . Trap . | . . . . . . . Miscellaneous . | . . . . . . . Route ------- -11/Scrapyard -10/Materials -10/Mines (discovered 2 exits: *Mat / [*Sub]) -9/Materials (discovered 3 exits: [*Mat x2] / [*Min]) -9/Mines -7/Zion (discovered 2 exits: [*Dee] / Pro) -7/Deep Caves History --------- Turn | Location | Event 21 | -11/Scrapyard | Discovered new exit (range 3) 124 | -11/Scrapyard | Entered Materials 303 | -10/Materials | Build established: Mutant 381 | -10/Materials | Discovered new exit (range 7) 519 | -10/Materials | Entered Mines 526 | -10/Mines | Met a Derelict bent on vengeance 661 | -10/Mines | Discovered new exit (range 6) 719 | -10/Mines | A weapon hastily lodged in a ceiling crevice suddenly fell to the ground 778 | -10/Mines | Learned location of Storage (-7) 834 | -10/Mines | Core integrity fell below 50% 1095 | -10/Mines | Discovered new exit (range 4) 1128 | -10/Mines | Entered Materials 1128 | -9/Materials | Evolved 2 slots: Propulsion x1, Utility x1 1315 | -9/Materials | Build established: Scavenger-Mutant 1317 | -9/Materials | Discovered new exit (range 8) 1753 | -9/Materials | Discovered new exit (range 13) 2669 | -9/Materials | Discovered new exit (range 14) 2720 | -9/Materials | Destroyed 8 combat bots 3091 | -9/Materials | Entered Mines 3092 | -9/Mines | Assembled infested the area 3097 | -9/Mines | Assisted by a Guerilla fighting off Assembled 3275 | -9/Mines | Lost 3 parts (2n1u) 3340 | -9/Mines | A Derelict revealed a hidden shortcut to a safe place 3442 | -9/Mines | Entered Zion 3567 | -7/Zion | System corruption cleaned by Quarantine Array 3658 | -7/Zion | Learned location of Armory (-3) 3805 | -7/Zion | Found CR-A16's Pointy Stick 3945 | -7/Zion | Received a hallucinogenic algorithm 4046 | -7/Zion | Learned location of Quarantine (-2) 4180 | -7/Zion | Identified exit to Proximity Caves 4219 | -7/Zion | Acquired unknown access codes intercepted by a Zionite 4259 | -7/Zion | Given the Hacking Drone Bay 4259 | -7/Zion | Found Prototype Device 4301 | -7/Zion | Found Prototype Special Weapon 4302 | -7/Zion | Identified RU-N14's Throwing Claymores 4306 | -7/Zion | Found RU-N14's Throwing Claymores 4309 | -7/Zion | Found RU-N14's Throwing Claymores 4313 | -7/Zion | Found RU-N14's Throwing Claymores 4496 | -7/Zion | Gained Derelict followers 4559 | -7/Zion | Build established: Mutant 4608 | -7/Zion | Met Imprinter 4650 | -7/Zion | Imprinted 4652 | -7/Zion | Declared Zion's savior 4841 | -7/Zion | Opened final containment barrier to the Deep Caves 4877 | -7/Zion | Discovered new exit (range 5) 4882 | -7/Zion | Saw the warning signs outside the Deep Caves entrance 4905 | -7/Zion | Entered Deep Caves 4905 | -7/Deep Caves | Accompanied by 6 allies 5179 | -7/Deep Caves | Attacked by Z-Imprinter 5186 | -7/Deep Caves | Destroyed Z-Imprinter 5423 | -7/Deep Caves | Z-Facility disabled 5479 | -7/Deep Caves | Found Prototype Protection 5479 | -7/Deep Caves | Identified Zio. Weapon Casing 5688 | -7/Deep Caves | Spotted AG-88523 5699 | -7/Deep Caves | Identified Hacking Drone Bay 5701 | -7/Deep Caves | Core integrity fell below 50% 5704 | -7/Deep Caves | Core integrity fell below 20% 5707 | -7/Deep Caves | Destroyed by AG-88523 with Assembled Focal Cannon Last Messages --------------- 05480_ Dropped Zio. Weapon Casing. 05481_ The unstable cave ceiling collapses. 05481_ Acquired 40 matter. 05484_ Acquired Prototype Protection. 05484_ Identified Zio. Light Carapace. 05492_ The unstable cave ceiling collapses. 05689_ EM Pulse Cannon destroyed. 05690_ AG-88523: "DSI9AT1D G8OHIBQ29FWG 26R186 QD12WHW8W33 TDK1 81FTS" 05692_ Zio. Light Carapace destroyed. 05692_ Lgt. Treads destroyed. 05695_ RU-N14's Throwing Claymores expended. 05697_ Arm. Treads destroyed. 05699_ Identified Hacking Drone Bay. 05700_ Arm. Treads destroyed. 05701_ Hacking Drone released from Hacking Drone Bay. 05702_ Dropped Hcp. Storage Unit. 05702_ Dropped Hacking Drone Bay. 05702_ >> Lost connection to Hacking Drone. 05703_ Dropped Med. Matter Pod. 05703_ Zio. Light DM Reactor destroyed. Map ----- +----------------------------------------------------+ | ?????????????????????????????????????????????????? | | ?????????????????????????????????????????????????? | | ?????????????????????????????????????????????????? | | ?????????????????????????????????????????????????? | | ?????????????????????????????????????????????????? | | ?????????????????????????????????????????????????? | | ?????????????????????????????????????????????????? | | ?????????????????????????????????????????????????? | | ?????????????????????????????????????????????????? | | ?????????????????????????????????????????????????? | | ?????????????????????????????????????????????????? | | ???????????????????? #???????????????????# ?? | | ????????????????? ?????????????????? | | ??????????????? s #????????????????? | | ???????????? ! #????????????????? | | ?????????? [ [ #?????????????????# | | ???????? == #?????????????????# | | ???????? #???##########??### | | ??????? M #??## ## ##?? | | ??????? = ##?# #??? # | | ?????? = ! #?# #???? # | | ?????? = h ![ #??# #????# #? | | ?????? = ! #?## #????# #?? | | ????? = l! ### ##??## #?? | | ????? #### ### | | ??????" = !! @ | | ????" *![ n | | ?????" /*!![ ### ### ## | | ????" b ]]] #?## #?## ######### | | ?????" !! ##??### #?#####???????# | | ????? # # "#????## #?????????????# | | ????? #### ## ## ###?????####?????????????## | | ??????" ?????# ?# ?###?????????????????????????? | | ?????? ???????#??# ?????????????????????????????? | | ???????????????????#?????????????????????????????? | | | | | | | | | | | | | | | | | | | | | | | | | | | | | | | +----------------------------------------------------+ Best States ------------- Heat Dissipation 38 Energy Generation 27 Energy Capacity 280 Matter Stores 300 Matter Capacity 300 Sight Range 16 Terrain Scan Range 16 Terrain Scan Density 10 Armor Coverage 400 Weapon Shielding 100 Evasion (%) 55 Targeting Accuracy 5 Recoil Reduction 3 Item Schematics ----------------- Imp. Terrain Scanner | -9/Materials | Scanalyzed Robot Schematics ------------------ None Fabricated ------------ Nothing Repaired ---------- Nothing Alien Tech Used ----------------- None Achievements -------------- None Challenges ------------ None Game ------ Seed CoilTowerMonowheel Manual? 0 Play Time 00:53:01 Cumulative 58.9 hours Start 2025.07.19 @ 22:25:41 End 2025.07.19 @ 23:25:37 Sessions 1 Manual Loads 0 Difficulty Rogue Special Mode None Game No. 206 Rogue 206 Adventurer 0 Explorer 0 Win Type - Total 0 Types 0/0/0/0/0/0/0/0/0/0 Lore% 37 Gallery% 54 Achievement% 44 Wizard Run 0 Options --------- Layout 0 ASCII 0 Keyboard 0 Movement Mouse Keybinds 0 Fullscreen 2 Font 18/SmallcapsGlow Map View 76x50 Zoom Use 0% Tactical HUD 1 Map Filters NONE Filters NONE Steam 1 RUN: c9dbd47e-13d5-45e7-bf7f-2c1027103cb4